fUST/lending_fUST_20250606
["ID","MTS","AMOUNT","RATE_DAILY","PERIOD"]
[364740511,1749223857852,-440.0,0.00022739,2]
[364740512,1749223857863,-562.49,0.00022739,2]
[364740513,1749223857873,-831.48,0.00022739,2]
[364740514,1749223857883,-440.0,0.00022739,2]
[364740515,1749223857894,-5296.18,0.00022739,2]
[364740516,1749223857905,-2045.12,0.00022739,2]
[364740517,1749223857914,-441.66,0.00022739,2]
[364740518,1749223857925,-1764.13,0.00022739,2]
[364740519,1749223857935,-173.328988,0.00022739,2]
[364740520,1749223857945,-1492.68,0.00022739,2]
[364740521,1749223857955,-1126.0,0.00022739,2]
[364740522,1749223857966,-440.0,0.00022739,2]
[364740523,1749223857976,-440.0,0.00022739,2]
[364740524,1749223857987,-2306.82,0.00022739,2]
[364740525,1749223857997,-440.0,0.00022739,2]
[364740526,1749223858007,-440.0,0.00022739,2]
[364740527,1749223858017,-685.82,0.00022739,2]
[364740528,1749223858027,-2874.28,0.00022739,2]
[364740529,1749223858038,-465.99,0.00022739,2]
[364740530,1749223858048,-3776.46,0.00022739,2]
[364740531,1749223858058,-300.0,0.00022739,2]
[364740532,1749223858068,-1767.71,0.00022739,2]
[364740533,1749223858079,-455.73,0.00022739,2]
[364740534,1749223858090,-2864.87,0.00022739,2]
[364740535,1749223858100,-1011.19,0.00022739,2]
[364740536,1749223858110,-2220.42,0.00022739,2]
[364740537,1749223858120,-440.0,0.00022739,2]
[364740538,1749223858130,-440.0,0.00022739,2]
[364740539,1749223858141,-5587.47,0.00022739,2]
[364740540,1749223858151,-1907.16802547,0.00022742,2]
[364740541,1749223858161,-581.0,0.00022764,2]
[364740542,1749223858175,-1000.0,0.00022765,2]
[364740543,1749223858188,-1500.0,0.00022765,2]
[364740544,1749223858198,-1500.0,0.00022765,2]
[364740545,1749223858208,-1500.0,0.00022765,2]
[364740546,1749223858218,-1500.0,0.00022765,2]
[364740547,1749223858228,-1500.0,0.00022765,2]
[364740548,1749223858239,-587.0,0.00022766,2]
[364740549,1749223858249,-1002.60008131,0.00022809,2]
[364740550,1749223858260,-1500.0,0.00022809,2]
[364740551,1749223858271,-1800.0,0.00022809,2]
[364740552,1749223858281,-4642.42901656,0.00022831,8]
[364740553,1749223858292,-973.87128663,0.00022846,2]
[364740554,1749223858302,-5000.0,0.00022896,2]
[364740555,1749223858312,-353.3559936,0.00022932,2]
[364740556,1749223858322,-309.8421927,0.00022932,2]
[364740557,1749223858332,-1200.0,0.00022954,2]
[364740558,1749223858342,-2047.0,0.00022985,2]
[364740559,1749223858353,-55660.61,0.00023,2]
[364740560,1749223858363,-34629.22620061,0.00023,2]
[364740561,1749223858373,-628.98551686,0.00023,20]
[364740562,1749223858383,-834.50537533,0.00023,3]
[364740563,1749223858393,-55672.39202893,0.00023,2]
[364740564,1749223858404,-10022.3948716,0.00023,2]
[364740565,1749223858414,-1327.39687771,0.00023,2]
[364740566,1749223858425,-229.52673067,0.00023,3]
[364740567,1749223858435,-200.38422,0.00023,7]
[364740568,1749223858446,-151.0,0.00023,7]
[364740569,1749223858456,-4642.42901656,0.00023003,8]
[364740570,1749223858466,-440.0,0.00023013,2]
[364740571,1749223858477,-458.47,0.00023013,2]
[364740572,1749223858487,-494.03,0.00023013,2]
[364740573,1749223858497,-485.38,0.00023013,2]
[364740574,1749223858506,-290.0,0.00023013,2]
[364740575,1749223858516,-758.37,0.00023013,2]
[364740576,1749223858527,-747.21,0.00023013,2]
[364740577,1749223858537,-440.0,0.00023013,2]
[364740578,1749223858548,-440.0,0.00023013,2]
[364740579,1749223858558,-440.0,0.00023013,2]
[364740580,1749223858568,-3215.6,0.00023013,2]
[364740581,1749223858581,-517.02,0.00023013,2]
[364740582,1749223858593,-440.0,0.00023013,2]
[364740583,1749223858605,-857.21,0.00023013,2]
[364740584,1749223858615,-477.98,0.00023013,2]
[364740585,1749223858626,-1912.42,0.00023013,2]
[364740586,1749223858636,-2359.7,0.00023013,2]
[364740587,1749223858645,-7142.79,0.00023013,2]
[364740588,1749223858656,-3777.35,0.00023013,2]
[364740589,1749223858766,-1127.7,0.00023013,2]
[364740590,1749223858776,-1196.38,0.00023013,2]
[364740591,1749223858786,-1802.88,0.00023013,2]
[364740592,1749223858796,-440.0,0.00023013,2]
[364740593,1749223858807,-440.0,0.00023013,2]
[364740594,1749223858818,-562.49,0.00023013,2]
[364740595,1749223858828,-831.48,0.00023013,2]
[364740596,1749223858838,-440.0,0.00023013,2]
[364740597,1749223858850,-5296.18,0.00023013,2]
[364740598,1749223858860,-2045.12,0.00023013,2]
[364740599,1749223858870,-441.66,0.00023013,2]
[364740600,1749223858886,-1764.13,0.00023013,2]
[364740601,1749223858895,-1492.68,0.00023013,2]
[364740602,1749223858904,-1126.0,0.00023013,2]
[364740603,1749223858914,-440.0,0.00023013,2]
[364740604,1749223858924,-440.0,0.00023013,2]
[364740605,1749223858937,-2306.82,0.00023013,2]
[364740606,1749223858947,-440.0,0.00023013,2]
[364740607,1749223858956,-440.0,0.00023013,2]
[364740608,1749223858965,-685.82,0.00023013,2]
[364740609,1749223858974,-2874.28,0.00023013,2]
[364740610,1749223858984,-465.99,0.00023013,2]
[364740611,1749223858994,-3776.46,0.00023013,2]
[364740612,1749223859003,-1767.71,0.00023013,2]
[364740613,1749223859012,-455.73,0.00023013,2]
[364740614,1749223859022,-2864.87,0.00023013,2]
[364740615,1749223859034,-1011.19,0.00023013,2]
[364740616,1749223859044,-2220.42,0.00023013,2]
[364740617,1749223859054,-440.0,0.00023013,2]
[364740618,1749223859064,-440.0,0.00023013,2]
[364740619,1749223859074,-5587.47,0.00023013,2]
[364740620,1749223859084,-1907.16802547,0.00023033,2]
[364740621,1749223859094,-500.0,0.00023068,2]
[364740622,1749223859104,-1000.0,0.00023068,2]
[364740623,1749223859114,-1500.0,0.00023068,2]
[364740624,1749223859123,-1500.0,0.00023068,2]
[364740625,1749223859133,-500.0,0.00023068,2]
[364740626,1749223859143,-1109.34697371,0.00023068,2]
[364740627,1749223859153,-5500.0,0.0002314,2]
[364740628,1749223859162,-5500.0,0.0002314,2]
[364740629,1749223859172,-5500.0,0.0002314,2]
[364740630,1749223859182,-151.0,0.0002314,7]
[364740631,1749223859191,-151.0,0.0002314,7]
[364740632,1749223859201,-4642.42901656,0.00023176,8]
[364740633,1749223859210,-160.24510217,0.00023199,2]
[364740634,1749223859220,-131029.29,0.000232,7]
[364740635,1749223859231,-1083.65,0.000232,7]
[364740636,1749223859242,-1959.57,0.000232,7]
[364740637,1749223859252,-581.03909443,0.00023287,2]
[364740638,1749223859262,-458.47,0.00023287,2]
[364740639,1749223859273,-494.03,0.00023287,2]
[364740640,1749223859284,-485.38,0.00023287,2]
[364740641,1749223859294,-758.37,0.00023287,2]
[364740642,1749223859304,-747.21,0.00023287,2]
[364740643,1749223859315,-440.0,0.00023287,2]
[364740644,1749223859324,-440.0,0.00023287,2]
[364740645,1749223859334,-440.0,0.00023287,2]
[364740646,1749223859343,-3215.6,0.00023287,2]
[364740647,1749223859354,-517.02,0.00023287,2]
[364740648,1749223859363,-440.0,0.00023287,2]
[364740649,1749223859373,-857.21,0.00023287,2]
[364740650,1749223859382,-477.98,0.00023287,2]
[364740651,1749223859391,-1912.42,0.00023287,2]
[364740652,1749223859401,-2359.7,0.00023287,2]
[364740653,1749223859412,-7142.79,0.00023287,2]
[364740654,1749223859421,-3777.35,0.00023287,2]
[364740655,1749223859431,-1127.7,0.00023287,2]
[364740656,1749223859440,-1196.38,0.00023287,2]
[364740657,1749223859450,-1802.88,0.00023287,2]
[364740658,1749223859459,-440.0,0.00023287,2]
[364740659,1749223859469,-440.0,0.00023287,2]
[364740660,1749223859478,-562.49,0.00023287,2]
[364740661,1749223859488,-831.48,0.00023287,2]
[364740662,1749223859497,-440.0,0.00023287,2]
[364740663,1749223859507,-5296.18,0.00023287,2]
[364740664,1749223859518,-2045.12,0.00023287,2]
[364740665,1749223859528,-441.66,0.00023287,2]
[364740666,1749223859540,-1764.13,0.00023287,2]
[364740667,1749223859550,-1492.68,0.00023287,2]
[364740668,1749223859560,-1126.0,0.00023287,2]
[364740669,1749223859570,-155.94198922,0.00023287,2]
[364740670,1749223859583,-440.0,0.00023287,2]
[364740671,1749223859593,-2306.82,0.00023287,2]
[364740672,1749223859603,-440.0,0.00023287,2]
[364740673,1749223859613,-440.0,0.00023287,2]
[364740674,1749223859624,-685.82,0.00023287,2]
[364740675,1749223859634,-2874.28,0.00023287,2]
[364740676,1749223859645,-465.99,0.00023287,2]
[364740677,1749223859656,-3776.46,0.00023287,2]
[364740678,1749223859666,-1767.71,0.00023287,2]
[364740679,1749223859675,-455.73,0.00023287,2]
[364740680,1749223859685,-2864.87,0.00023287,2]
[364740681,1749223859695,-1011.19,0.00023287,2]
[364740682,1749223859707,-2220.42,0.00023287,2]
[364740683,1749223859716,-440.0,0.00023287,2]
[364740684,1749223859726,-440.0,0.00023287,2]
[364740685,1749223859736,-5587.47,0.00023287,2]
[364740686,1749223859746,-500.0,0.00023313,2]
[364740687,1749223859756,-2036.43297428,0.00023313,2]
[364740688,1749223859765,-2000.0,0.00023313,2]
[364740689,1749223859774,-2000.0,0.00023313,2]
[364740690,1749223859784,-500.0,0.00023313,2]
[364740691,1749223859794,-1907.16802547,0.00023325,2]
[364740692,1749223859803,-4642.42901656,0.00023348,9]
[364740693,1749223859813,-500.0,0.00023357,2]
[364740694,1749223859822,-2400.0,0.00023357,2]
[364740695,1749223859832,-250.0,0.00023358,2]
[364740696,1749223859841,-153.406888,0.00023444,7]
[364740697,1749223859851,-5000.0,0.00023444,2]
[364740698,1749223859860,-587.48,0.00023454,2]
[364740699,1749223859870,-153.0,0.00023479,2]
[364740700,1749223859879,-153.0,0.00023479,2]
[364740701,1749223859889,-153.0,0.00023479,2]
[364740702,1749223859898,-47469.57400398,0.000235,2]
[364740703,1749223859908,-6690.60550278,0.000235,2]
[364740704,1749223859917,-709.0,0.00023507,2]
[364740705,1749223859927,-2224.0,0.00023507,2]
[364740706,1749223859936,-405.0,0.00023507,2]
[364740707,1749223859946,-974.114,0.00023507,2]
[364740708,1749223859956,-12500.0,0.0002352,3]
[364740709,1749223859965,-4642.42901656,0.00023521,9]
[364740710,1749223859974,-12500.0,0.00023529,3]
[364740711,1749223859984,-12500.0,0.00023538,3]
[364740712,1749223859994,-2062.56683271,0.00023542,3]
[364740713,1749223860003,-458.47,0.00023561,2]
[364740714,1749223860013,-494.03,0.00023561,2]
[364740715,1749223860023,-485.38,0.00023561,2]
[364740716,1749223860032,-758.37,0.00023561,2]
[364740717,1749223860042,-747.21,0.00023561,2]
[364740718,1749223860052,-271.8,0.00023561,2]
[364740719,1749223860062,-440.0,0.00023561,2]
[364740720,1749223860072,-440.0,0.00023561,2]
[364740721,1749223860082,-3215.6,0.00023561,2]
[364740722,1749223860092,-517.02,0.00023561,2]
[364740723,1749223860102,-384.75834689,0.00023561,2]
[364740724,1749223860183,-857.21,0.00023561,2]
[364740725,1749223860194,-477.98,0.00023561,2]
[364740726,1749223860203,-1912.42,0.00023561,2]
[364740727,1749223860213,-2359.7,0.00023561,2]
[364740728,1749223860223,-7142.79,0.00023561,2]
[364740729,1749223860234,-3777.35,0.00023561,2]
[364740730,1749223860243,-1127.7,0.00023561,2]
[364740731,1749223860254,-1196.38,0.00023561,2]
[364740732,1749223860264,-1802.88,0.00023561,2]
[364740733,1749223860273,-440.0,0.00023561,2]
[364740734,1749223860283,-440.0,0.00023561,2]
[364740735,1749223860293,-562.49,0.00023561,2]
[364740736,1749223860303,-831.48,0.00023561,2]
[364740737,1749223860313,-440.0,0.00023561,2]
[364740738,1749223860323,-5296.18,0.00023561,2]
[364740739,1749223860333,-2045.12,0.00023561,2]
[364740740,1749223860343,-441.66,0.00023561,2]
[364740741,1749223860352,-1764.13,0.00023561,2]
[364740742,1749223860362,-1492.68,0.00023561,2]
[364740743,1749223860372,-1126.0,0.00023561,2]
[364740744,1749223860382,-440.0,0.00023561,2]
[364740745,1749223860392,-2306.82,0.00023561,2]
[364740746,1749223860401,-440.0,0.00023561,2]
[364740747,1749223860411,-440.0,0.00023561,2]
[364740748,1749223860420,-685.82,0.00023561,2]
[364740749,1749223860430,-2874.28,0.00023561,2]
[364740750,1749223860441,-465.99,0.00023561,2]
[364740751,1749223860451,-3776.46,0.00023561,2]
[364740752,1749223860461,-1767.71,0.00023561,2]
[364740753,1749223860471,-455.73,0.00023561,2]
[364740754,1749223860482,-2864.87,0.00023561,2]
[364740755,1749223860492,-1011.19,0.00023561,2]
[364740756,1749223860502,-2220.42,0.00023561,2]
[364740757,1749223860512,-440.0,0.00023561,2]
[364740758,1749223860522,-452.15,0.00023561,2]
[364740759,1749223860532,-5587.47,0.00023561,2]
[364740760,1749223860542,-600.0,0.00023598,2]
[364740761,1749223860552,-1907.16802547,0.00023616,2]
[364740762,1749223860562,-364.7156952,0.00023616,2]
[364740763,1749223860572,-364.7156952,0.00023616,2]
[364740764,1749223860585,-364.7156952,0.00023616,2]
[364740765,1749223860595,-364.5816698,0.00023616,2]
[364740766,1749223860604,-165.5293091,0.00023616,2]
[364740767,1749223860614,-238.47966885,0.00023616,2]
[364740768,1749223860624,-2000.0,0.00023616,2]
[364740769,1749223860634,-2000.0,0.00023616,2]
[364740770,1749223860644,-502.12936274,0.0002365,2]
[364740771,1749223860655,-413.65690505,0.0002365,2]
[364740772,1749223860665,-4642.42901656,0.00023693,9]
[364740773,1749223860674,-153.0,0.00023753,2]
[364740774,1749223860688,-1154.3959266,0.00023753,2]
[364740775,1749223860698,-495.7740456,0.00023753,2]
[364740776,1749223860708,-161.2315508,0.00023753,2]
[364740777,1749223860719,-153.0,0.00023753,2]
[364740778,1749223860729,-153.0,0.00023753,2]
[364740779,1749223860739,-153.0,0.00023753,2]
[364740780,1749223860749,-153.0,0.00023753,2]
[364740781,1749223860759,-161.0182729,0.00023753,2]
[364740782,1749223860770,-150.0,0.00023773,2]
[364740783,1749223860779,-160.0,0.00023779,2]
[364740784,1749223860789,-253.626543,0.0002378,7]
[364740785,1749223860799,-253.626543,0.0002378,7]
[364740786,1749223860809,-253.626543,0.0002378,7]
[364740787,1749223860819,-253.626543,0.0002378,7]
[364740788,1749223860829,-151.0,0.0002378,7]
[364740789,1749223860838,-151.0,0.0002378,7]
[364740790,1749223860848,-151.0,0.0002378,7]
[364740791,1749223860858,-151.0,0.0002378,7]
[364740792,1749223860867,-280.15502885,0.00023796,2]
[364740793,1749223860877,-149149.96265164,0.000238,2]
[364740794,1749223860887,-1603430.76402271,0.000238,3]
[364740795,1749223860896,-151.0,0.000238,7]
[364740796,1749223860906,-151.0,0.000238,7]
[364740797,1749223860916,-458.47,0.00023835,2]
[364740798,1749223860926,-494.03,0.00023835,2]
[364740799,1749223860936,-485.38,0.00023835,2]
[364740800,1749223860946,-758.37,0.00023835,2]
[364740801,1749223860956,-747.21,0.00023835,2]
[364740802,1749223860965,-571.07108352,0.00023835,2]
[364740803,1749223860975,-440.0,0.00023835,2]
[364740804,1749223860986,-3215.6,0.00023835,2]
[364740805,1749223860996,-517.02,0.00023835,2]
[364740806,1749223861006,-151.0,0.00023835,7]
[364740807,1749223861015,-857.21,0.00023835,2]
[364740808,1749223861025,-477.98,0.00023835,2]
[364740809,1749223861035,-151.0,0.00023835,7]
[364740810,1749223861045,-1912.42,0.00023835,2]
[364740811,1749223861055,-2359.7,0.00023835,2]
[364740812,1749223861064,-7142.79,0.00023835,2]
[364740813,1749223861074,-3777.35,0.00023835,2]
[364740814,1749223861083,-1127.7,0.00023835,2]
[364740815,1749223861093,-1196.38,0.00023835,2]
[364740816,1749223861102,-151.0,0.00023835,7]
[364740817,1749223861112,-1802.88,0.00023835,2]
[364740818,1749223861122,-151.0,0.00023835,7]
[364740819,1749223861132,-440.0,0.00023835,2]
[364740820,1749223861141,-440.0,0.00023835,2]
[364740821,1749223861151,-562.49,0.00023835,2]
[364740822,1749223861161,-831.48,0.00023835,2]
[364740823,1749223861172,-440.0,0.00023835,2]
[364740824,1749223861182,-5296.18,0.00023835,2]
[364740825,1749223861192,-2045.12,0.00023835,2]
[364740826,1749223861202,-441.66,0.00023835,2]
[364740827,1749223861212,-1764.13,0.00023835,2]
[364740828,1749223861222,-1492.68,0.00023835,2]
[364740829,1749223861232,-1126.0,0.00023835,2]
[364740830,1749223861242,-207.58816701,0.00023835,2]
[364740831,1749223861253,-2306.82,0.00023835,2]
[364740832,1749223861263,-440.0,0.00023835,2]
[364740833,1749223861273,-440.0,0.00023835,2]
[364740834,1749223861283,-685.82,0.00023835,2]
[364740835,1749223861292,-2874.28,0.00023835,2]
[364740836,1749223861303,-465.99,0.00023835,2]
[364740837,1749223861313,-3776.46,0.00023835,2]
[364740838,1749223861323,-1767.71,0.00023835,2]
[364740839,1749223861334,-455.73,0.00023835,2]
[364740840,1749223861344,-2864.87,0.00023835,2]
[364740841,1749223861354,-1011.19,0.00023835,2]
[364740842,1749223861365,-2220.42,0.00023835,2]
[364740843,1749223861375,-440.0,0.00023835,2]
[364740844,1749223861384,-5587.47,0.00023835,2]
[364740845,1749223861394,-600.0,0.00023844,2]
[364740846,1749223861404,-1500.0,0.00023861,2]
[364740847,1749223861414,-2500.0,0.00023861,2]
[364740848,1749223861424,-4642.42901656,0.00023866,10]
[364740849,1749223861433,-151.0,0.000239,7]
[364740850,1749223861522,-400.0,0.000239,2]
[364740851,1749223861533,-200.0,0.000239,3]
[364740852,1749223861542,-1822.92620664,0.000239,2]
[364740853,1749223861552,-835.85485566,0.000239,2]
[364740854,1749223861562,-3000.0,0.00023905,2]
[364740855,1749223861574,-1907.16802547,0.00023907,2]
[364740856,1749223861587,-26658.68236298,0.00023912,7]
[364740857,1749223861597,-223.0315306,0.0002399,2]
[364740858,1749223861606,-5000.0,0.00023992,2]
[364740859,1749223861616,-5475.58158218,0.00023995,2]
[364740860,1749223861626,-158.15,0.00024,2]
[364740861,1749223861636,-423.83542519,0.00024,7]
[364740862,1749223861645,-834.50537533,0.00024,7]
[364740863,1749223861655,-1369.63002134,0.00024,2]
[364740864,1749223861665,-190.55941656,0.00024,21]
[364740865,1749223861674,-1683.37476794,0.00024,2]
[364740866,1749223861685,-10090.11981347,0.00024,2]
[364740867,1749223861694,-229.52673067,0.00024,7]
[364740868,1749223861705,-325.58,0.00024024,11]
[364740869,1749223861714,-4642.42901656,0.00024038,10]
[364740870,1749223861724,-1200.0,0.0002405,2]
[364740871,1749223861735,-253.626543,0.00024071,7]
[364740872,1749223861746,-253.626543,0.00024071,7]
[364740873,1749223861756,-151.0,0.00024071,7]
[364740874,1749223861765,-151.0,0.00024071,7]
[364740875,1749223861775,-151.0,0.00024071,7]
[364740876,1749223861785,-151.0,0.00024071,7]
[364740877,1749223861795,-143551.19348742,0.00024071,7]
[364740878,1749223861804,-1115.448962,0.00024089,3]
[364740879,1749223861814,-600.0,0.00024089,2]
[364740880,1749223861823,-151.0,0.000241,8]
[364740881,1749223861833,-631.26,0.00024109,2]
[364740882,1749223861843,-458.47,0.00024109,2]
[364740883,1749223861852,-494.03,0.00024109,2]
[364740884,1749223861862,-485.38,0.00024109,2]
[364740885,1749223861872,-758.37,0.00024109,2]
[364740886,1749223861881,-747.21,0.00024109,2]
[364740887,1749223861891,-440.0,0.00024109,2]
[364740888,1749223861900,-3215.6,0.00024109,2]
[364740889,1749223861910,-517.02,0.00024109,2]
[364740890,1749223861919,-857.21,0.00024109,2]
[364740891,1749223861929,-477.98,0.00024109,2]
[364740892,1749223861939,-1912.42,0.00024109,2]
[364740893,1749223861949,-2359.7,0.00024109,2]
[364740894,1749223861958,-7142.79,0.00024109,2]
[364740895,1749223861968,-3777.35,0.00024109,2]
[364740896,1749223861978,-1127.7,0.00024109,2]
[364740897,1749223861988,-1196.38,0.00024109,2]
[364740898,1749223861998,-1802.88,0.00024109,2]
[364740899,1749223862008,-440.0,0.00024109,2]
[364740900,1749223862017,-440.0,0.00024109,2]
[364740901,1749223862028,-440.0,0.00024109,2]
[364740902,1749223862038,-440.0,0.00024109,2]
[364740903,1749223862048,-440.0,0.00024109,2]
[364740904,1749223862058,-440.0,0.00024109,2]
[364740905,1749223862068,-440.0,0.00024109,2]
[364740906,1749223862079,-440.0,0.00024109,2]
[364740907,1749223862094,-440.0,0.00024109,2]
[364740908,1749223862115,-498.99210644,0.00024109,2]
[364740909,1749223862134,-562.49,0.00024109,2]
[364740910,1749223862154,-831.48,0.00024109,2]
[364740911,1749223862174,-440.0,0.00024109,2]
[364740912,1749223862193,-5296.18,0.00024109,2]
[364740913,1749223862209,-2045.12,0.00024109,2]
[364740914,1749223862230,-441.66,0.00024109,2]
[364740915,1749223862245,-1764.13,0.00024109,2]
[364740916,1749223862264,-1492.68,0.00024109,2]
[364740917,1749223862283,-1126.0,0.00024109,2]
[364740918,1749223862302,-2306.82,0.00024109,2]
[364740919,1749223862316,-440.0,0.00024109,2]
[364740920,1749223862337,-540.0,0.00024109,2]
[364740921,1749223862350,-685.82,0.00024109,2]
[364740922,1749223862366,-2874.28,0.00024109,2]
[364740923,1749223862380,-465.99,0.00024109,2]
[364740924,1749223862396,-3776.46,0.00024109,2]
[364740925,1749223862411,-1767.71,0.00024109,2]
[364740926,1749223862426,-455.73,0.00024109,2]
[364740927,1749223862441,-2864.87,0.00024109,2]
[364740928,1749223862455,-1011.19,0.00024109,2]
[364740929,1749223862470,-2220.42,0.00024109,2]
[364740930,1749223862485,-440.0,0.00024109,2]
[364740931,1749223862499,-5587.47,0.00024109,2]
[364740932,1749223862515,-1889.94644228,0.00024164,2]
[364740933,1749223862530,-2500.0,0.00024164,2]
[364740934,1749223862544,-1907.16802547,0.00024198,2]
[364740935,1749223862559,-4642.42901656,0.0002421,10]
[364740936,1749223862573,-652.76,0.00024263,2]
[364740937,1749223862590,-150.0,0.000243,2]
[364740938,1749223862604,-131029.29,0.000243,7]
[364740939,1749223862620,-55660.61,0.000243,2]
[364740940,1749223862637,-423.83542519,0.000243,10]
[364740941,1749223862651,-315.04936747,0.000243,10]
[364740942,1749223862662,-11849.89752062,0.000243,10]
[364740943,1749223862672,-834.50537533,0.000243,10]
[364740944,1749223862682,-151.0,0.000243,7]
[364740945,1749223862692,-151.0,0.000243,7]
[364740946,1749223862702,-229.52673067,0.000243,10]
[364740947,1749223862712,-250.0,0.00024321,2]
[364740948,1749223862722,-550.36,0.00024324,4]
[364740949,1749223862733,-800.0,0.00024325,2]
[364740950,1749223862742,-200.0,0.0002433,10]
[364740951,1749223862752,-600.0,0.00024335,2]
[364740952,1749223862762,-2593.40689028,0.00024354,3]
[364740953,1749223862772,-5024.6266442,0.0002436,2]
[364740954,1749223862782,-800.0,0.00024361,2]
[364740955,1749223862792,-4642.42901656,0.00024383,11]
[364740956,1749223862801,-631.26,0.00024383,2]
[364740957,1749223862811,-458.47,0.00024383,2]
[364740958,1749223862821,-494.03,0.00024383,2]
[364740959,1749223862830,-485.38,0.00024383,2]
[364740960,1749223862840,-758.37,0.00024383,2]
[364740961,1749223862850,-747.21,0.00024383,2]
[364740962,1749223862859,-440.0,0.00024383,2]
[364740963,1749223862870,-3215.6,0.00024383,2]
[364740964,1749223862880,-517.02,0.00024383,2]
[364740965,1749223862890,-857.21,0.00024383,2]
[364740966,1749223863122,-477.98,0.00024383,2]
[364740967,1749223863145,-1912.42,0.00024383,2]
[364740968,1749223863158,-2359.7,0.00024383,2]
[364740969,1749223863168,-7142.79,0.00024383,2]
[364740970,1749223863179,-3777.35,0.00024383,2]
[364740971,1749223863190,-1127.7,0.00024383,2]
[364740972,1749223863201,-1196.38,0.00024383,2]
[364740973,1749223863211,-1802.88,0.00024383,2]
[364740974,1749223863221,-440.0,0.00024383,2]
[364740975,1749223863231,-440.0,0.00024383,2]
[364740976,1749223863242,-562.49,0.00024383,2]
[364740977,1749223863252,-831.48,0.00024383,2]
[364740978,1749223863262,-440.0,0.00024383,2]
[364740979,1749223863272,-5296.18,0.00024383,2]
[364740980,1749223863282,-2045.12,0.00024383,2]
[364740981,1749223863292,-441.66,0.00024383,2]
[364740982,1749223863303,-1764.13,0.00024383,2]
[364740983,1749223863313,-1492.68,0.00024383,2]
[364740984,1749223863323,-1126.0,0.00024383,2]
[364740985,1749223863334,-2306.82,0.00024383,2]
[364740986,1749223863344,-372.66771293,0.00024383,2]
[364740987,1749223863354,-685.82,0.00024383,2]
[364740988,1749223863364,-2874.28,0.00024383,2]
[364740989,1749223863374,-465.99,0.00024383,2]
[364740990,1749223863386,-3776.46,0.00024383,2]
[364740991,1749223863396,-1767.71,0.00024383,2]
[364740992,1749223863406,-455.73,0.00024383,2]
[364740993,1749223863416,-2864.87,0.00024383,2]
[364740994,1749223863425,-151.0,0.00024383,7]
[364740995,1749223863437,-1011.19,0.00024383,2]
[364740996,1749223863447,-2220.42,0.00024383,2]
[364740997,1749223863458,-440.0,0.00024383,2]
[364740998,1749223863468,-5587.47,0.00024383,2]
[364740999,1749223863478,-800.0,0.00024397,2]
[364741000,1749223863488,-2000.0,0.000244,2]
[364741001,1749223863498,-539.24,0.000244,2]
[364741002,1749223863509,-2000.0,0.000244,2]
[364741003,1749223863519,-151.0,0.000244,10]
[364741004,1749223863530,-1083.65,0.000244,7]
[364741005,1749223863540,-1959.57,0.000244,7]
[364741006,1749223863550,-949.32,0.000244,31]
[364741007,1749223863560,-949.32,0.000244,31]
[364741008,1749223863570,-949.32,0.000244,31]
[364741009,1749223863582,-949.32,0.000244,31]
[364741010,1749223863592,-949.32,0.000244,31]